bitfinex/quotes_ETHUSD_20250324
["timestamp","ask_amount","ask_price","bid_price","bid_amount"]
[1742788744347,4.95697,2017.4,2017.0,34.750077]
[1742788744637,4.1887182,2017.5,2017.2,4.95723]
[1742788744812,4.9565,2017.6,2017.3,1.824423]
[1742788745012,9.1452182,2017.6,2017.3,1.824423]
[1742788746012,14.1018082,2017.6,2017.3,1.824423]
[1742788746547,4.9565,2017.6,2017.3,1.824423]
[1742788746847,9.1452182,2017.6,2017.3,1.824423]
[1742788747142,9.1452182,2017.6,2017.5,0.55]
[1742788748245,4.9565,2017.6,2017.5,0.55]
[1742788748444,9.1452182,2017.6,2017.5,0.55]
[1742788749143,4.785,2017.8,2017.5,0.55]
[1742788749144,3.0,2017.8,2017.5,5.50652]
[1742788749332,4.1887182,2017.8,2017.6,4.95627]
[1742788749534,4.1887182,2017.8,2017.6,1.3595]
[1742788750312,9.91027,2018.2,2017.6,1.3595]
[1742788750611,4.1887182,2017.9,2017.6,1.3595]
[1742788750838,4.1887182,2017.7,2017.6,1.3595]
[1742788751043,4.1887182,2017.7,2017.4,0.55]
[1742788751044,9.1448482,2017.7,2017.4,0.55]
[1742788751247,9.1448482,2017.7,2017.4,1.76180031]
[1742788751452,4.1887182,2017.7,2017.4,1.76180031]
[1742788751745,9.73926,2018.1,2017.6,0.55]
[1742788751938,4.1887182,2017.9,2017.6,0.55]
[1742788753043,4.1887182,2017.7,2017.6,0.55]
[1742788753541,5.76032,2017.9,2017.6,0.55]
[1742788753744,4.1887182,2017.8,2017.6,1.30279803]
[1742788754245,4.1887182,2017.8,2017.6,6.25913803]
[1742788754417,4.1887182,2018.1,2017.8,0.55]
[1742788755150,9.1440782,2018.1,2017.8,0.55]
[1742788756348,4.1887182,2018.0,2017.8,0.55]
[1742788756717,4.1887182,2018.0,2017.8,1.7524558]
[1742788757129,4.1887182,2018.0,2017.8,6.7083158]
[1742788757326,4.9546,2018.4,2017.8,1.7524558]
[1742788757531,4.1887182,2018.2,2017.8,5.50581]
[1742788757733,9.1436382,2018.2,2017.8,5.50581]
[1742788758332,4.95524,2018.1,2017.8,0.55]
[1742788759454,4.95397,2018.6,2018.1,0.55]
[1742788759650,4.95397,2018.6,2018.1,5.50494]
[1742788759831,4.1887182,2018.5,2018.2,0.631444]
[1742788760243,4.1887182,2018.5,2018.2,5.586344]
[1742788760453,9.1430082,2018.5,2018.2,0.631444]
[1742788760632,4.1887182,2018.5,2018.2,0.631444]
[1742788761153,4.1887182,2018.3,2018.0,0.8095]
[1742788761321,4.1887182,2018.4,2017.9,27.408]
[1742788761322,4.1887182,2018.1,2017.9,27.408]
[1742788761833,4.1887182,2018.1,2018.0,1.54701154]
[1742788768124,3.0,2018.4,2018.1,1.3466]
[1742788768954,9.1430082,2018.5,2018.1,6.30174]
[1742788769267,12.1426582,2018.6,2018.3,0.55]
[1742788769634,4.1887182,2018.4,2018.3,0.55]
[1742788770236,9.1431782,2018.4,2018.2,0.55]
[1742788772067,4.95466,2018.3,2018.1,0.55]
[1742788772266,9.1436282,2018.2,2018.1,0.55]
[1742788772633,4.1887182,2018.2,2018.1,0.55]
[1742788772835,9.1431782,2018.4,2018.1,0.55]
[1742788773542,9.1431982,2018.4,2018.1,0.55]
[1742788775033,4.95466,2018.3,2018.1,0.55]
[1742788776167,9.1431982,2018.4,2018.1,0.55]
[1742788776565,4.95467,2018.3,2018.1,0.55]
[1742788777664,9.1437882,2018.2,2018.0,0.99701154]
[1742788778744,3.75757857,2018.5,2018.1,5.50515]
[1742788778943,4.1887182,2018.4,2018.1,0.55]
[1742788779143,9.1431382,2018.4,2018.1,0.55]
[1742788779560,4.1887182,2018.4,2018.1,0.55]
[1742788783976,9.1431582,2018.4,2018.1,0.55]
[1742788784159,9.1437182,2018.2,2018.0,0.99701154]
[1742788784355,9.1436982,2018.2,2018.0,0.99701154]
[1742788785881,9.9614982,2018.2,2018.0,0.99701154]
[1742788786084,4.95515,2018.1,2018.0,0.99701154]
[1742788787185,9.9614982,2018.2,2018.0,0.99701154]
[1742788787688,9.1436982,2018.2,2018.0,0.99701154]
[1742788789278,8.77295,2018.1,2018.0,0.99701154]
[1742788789479,8.77296,2018.1,2017.5,4.95642]
[1742788789677,3.0,2018.1,2017.6,0.794]
[1742788789882,7.95523,2018.1,2017.8,0.55]
[1742788790098,3.0,2018.1,2017.8,0.55]
[1742788790406,7.95517,2018.1,2017.8,0.55]
[1742788791284,7.95517,2018.1,2017.7,0.55]
[1742788791487,4.95517,2018.1,2017.8,0.96888354]
[1742788791675,4.955,2018.2,2017.9,1.3083]
[1742788792081,4.955,2018.2,2017.9,6.26392]
[1742788792393,4.955,2018.2,2017.9,1.3083]
[1742788793305,4.955,2018.2,2017.9,6.2639]
[1742788794203,9.1433182,2018.4,2018.0,4.95533]
[1742788794496,9.1432882,2018.4,2018.0,4.95533]
[1742788794682,14.0978982,2018.4,2018.0,4.95533]
[1742788794882,4.95467,2018.3,2018.0,4.95533]
[1742788795200,4.95467,2018.3,2017.9,10.33531565]
[1742788795373,4.1887182,2018.2,2017.9,6.26376]
[1742788795566,9.1436382,2018.2,2017.9,6.26376]
[1742788795959,4.1887182,2018.2,2017.9,6.26376]
[1742788796791,4.1887182,2018.2,2018.0,4.95519]
[1742788796967,9.1431382,2018.4,2018.0,4.95519]
[1742788797168,4.9547,2018.3,2017.9,6.26387]
[1742788797511,4.9547,2018.3,2017.9,10.33539565]
[1742788798295,9.90957,2018.3,2017.9,6.26387]
[1742788798461,4.1887182,2018.2,2017.9,6.26387]
[1742788798667,4.1887182,2018.0,2017.9,0.55]
[1742788798895,9.1442282,2018.0,2017.8,0.96888354]
[1742788799382,9.1439082,2018.1,2017.8,0.96888354]
[1742788799586,4.95541,2018.0,2017.8,0.96888354]
[1742788802102,4.95467,2018.3,2017.8,0.96888354]
[1742788802270,0.7834,2018.4,2018.0,0.752]
[1742788802471,0.00517857,2018.5,2018.1,4.7387182]
[1742788802678,0.00517857,2018.5,2018.2,4.95466]
[1742788802879,0.00517857,2018.5,2018.3,11.21109]
[1742788803079,0.00517857,2018.5,2018.4,0.55]
[1742788803283,0.00517857,2018.5,2018.4,4.95441]
[1742788803566,0.00517857,2018.5,2018.4,5.50441]
[1742788803999,0.00517857,2018.5,2018.4,6.3059504]
[1742788804201,8.57e-06,2018.5,2018.4,9.25641]
[1742788804367,8.57e-06,2018.5,2018.4,12.23150927]
[1742788804569,8.57e-06,2018.5,2018.4,13.17084267]
[1742788804767,8.57e-06,2018.5,2018.4,17.94984267]
[1742788805283,8.57e-06,2018.5,2018.4,22.13856087]
[1742788806279,8.57e-06,2018.5,2018.4,22.5070784]
[1742788807377,8.57e-06,2018.5,2018.4,15.3183602]
[1742788809274,8.57e-06,2018.5,2018.4,22.5070784]
[1742788809475,8.57e-06,2018.5,2018.4,26.6957966]
[1742788809717,0.1205595,2019.2,2019.1,5.7195]
[1742788810020,0.1205595,2019.2,2019.1,33.68645]
[1742788810304,4.94992,2020.3,2019.8,4.95088]
[1742788810509,0.7654,2020.3,2020.0,4.95033]
[1742788810820,0.7654,2020.5,2019.8,4.1887182]
[1742788811030,0.005,2020.6,2020.3,4.94959]
[1742788811323,0.005,2020.6,2020.2,0.7668]
[1742788811324,0.7654,2020.3,2019.9,27.88655182]
[1742788811524,5.71663,2019.7,2019.3,0.7668]
[1742788811708,5.71665,2019.7,2019.3,0.7668]
[1742788811921,0.7654,2019.9,2019.3,5.71891]
[1742788812096,9.1391582,2020.1,2019.5,4.95152]
[1742788812097,9.90084,2020.1,2019.5,4.95152]
[1742788812295,9.1394182,2020.0,2019.4,1.02882773]
[1742788812551,4.9504,2020.1,2019.4,1.02882773]
[1742788812706,9.1391182,2020.1,2019.5,4.95169]
[1742788812902,4.95065,2020.0,2019.5,1.16994577]
[1742788813118,4.1887182,2019.7,2019.3,0.7668]
[1742788813496,3.20043927,2019.5,2019.3,0.7668]
[1742788813695,3.20043927,2019.5,2019.0,3.0]
[1742788813696,4.1887182,2019.5,2019.1,5.71948]
[1742788814090,4.1887182,2019.8,2019.1,0.7668]
[1742788814292,0.7654,2020.1,2019.5,0.98897336]
[1742788814499,4.89,2020.2,2019.7,0.7668]
[1742788814836,0.37443638,2020.5,2019.9,4.95072]
[1742788814837,4.94934,2020.5,2019.9,4.95072]
[1742788815000,4.1887182,2020.4,2019.9,6.02254057]
[1742788815331,9.1382882,2020.4,2020.1,0.97816003]
[1742788815539,0.7654,2020.5,2020.1,0.97816003]
[1742788815689,0.005,2020.6,2020.2,5.71677]
[1742788815894,0.005,2020.6,2020.3,5.66868885]
[1742788816110,0.005,2020.6,2020.3,0.669493]
[1742788816814,0.005,2020.6,2020.4,4.9494]
[1742788816989,0.005,2020.6,2020.3,5.619103]
[1742788817195,0.7704,2020.6,2020.1,0.97816003]
[1742788817493,4.1887182,2020.4,2020.0,0.7668]
[1742788817713,4.1887182,2020.2,2019.8,27.382]
[1742788817916,0.11935726,2020.1,2019.9,1.00950812]
[1742788818106,9.1380282,2020.5,2019.9,9.86627493]
[1742788818427,0.11935726,2020.4,2020.2,4.94994]
[1742788818590,0.11935726,2020.4,2020.0,4.95028]
[1742788818801,4.1887182,2020.4,2020.2,4.95]
[1742788819005,0.11930445,2020.3,2020.2,4.95]
[1742788819211,0.11930445,2020.3,2020.2,6.706828]
[1742788819424,0.005,2020.6,2020.5,4.94926]
[1742788820271,0.005,2020.6,2020.5,6.26606]
[1742788821551,0.005,2020.6,2020.5,11.22206]
[1742788822102,0.005,2020.6,2020.5,0.7668]
[1742788822338,0.005,2020.6,2020.3,28.1632]
[1742788822835,4.1887182,2020.5,2020.0,4.95031]
[1742788823038,4.1887182,2020.5,2019.9,3.90604681]
[1742788823039,4.1887182,2020.3,2019.9,8.85678681]
[1742788823237,4.1887182,2020.3,2019.9,3.90604681]
[1742788823446,4.1887182,2020.3,2019.9,8.85661681]
[1742788823815,4.1887182,2020.3,2019.9,3.90604681]
[1742788824015,4.1887182,2020.1,2019.8,27.374]
[1742788824408,4.1887182,2020.3,2019.8,32.32478]
[1742788824725,9.1385382,2020.3,2019.8,27.374]
[1742788825035,7.1887182,2020.3,2019.8,32.32497]
[1742788825239,4.1887182,2020.5,2020.0,4.95049]
[1742788825537,0.005,2020.6,2020.3,4.9497]
[1742788825761,0.11301308,2020.5,2020.3,4.9497]
[1742788825908,4.30173128,2020.5,2020.0,4.95]
[1742788826242,4.1887182,2020.1,2019.9,0.7842]
[1742788826442,4.1887182,2020.1,2019.8,27.374]
[1742788826646,0.11327733,2020.0,2019.7,4.95107]
[1742788826940,0.11327733,2020.0,2019.6,27.374]
[1742788826941,4.1887182,2019.9,2019.6,27.374]
[1742788827145,0.11306593,2019.8,2019.6,27.374]
[1742788827317,9.1395082,2019.9,2019.6,27.374]
[1742788827661,4.1887182,2019.7,2019.6,27.374]
[1742788827865,4.95153,2019.6,2019.2,0.49555182]
[1742788828163,10.05074842,2019.5,2019.0,33.11114]
[1742788828363,5.09897842,2019.5,2019.0,33.11112]
[1742788828728,4.1887182,2019.3,2019.0,27.374]
[1742788828927,4.71275841,2019.2,2019.0,27.374]
[1742788829128,0.1115859,2019.2,2019.0,27.374]
[1742788829323,5.0642259,2019.2,2019.0,27.374]
[1742788829516,4.9527,2019.1,2018.6,28.1592]
[1742788829732,5.85882173,2019.0,2018.6,4.302721]
[1742788829936,10.45999424,2019.0,2018.5,27.375]
[1742788830133,0.90587173,2019.0,2018.5,27.375]
[1742788830334,4.95322,2018.9,2018.5,27.375]
[1742788830540,0.10037544,2018.8,2018.5,30.686346]
[1742788830727,10.35143251,2019.0,2018.5,30.686346]
[1742788830728,10.35143251,2019.0,2018.5,35.640496]
[1742788830924,0.10037544,2018.9,2018.8,4.95331]
[1742788831132,3.7973,2019.4,2018.9,4.95308]
[1742788831327,4.70033091,2019.3,2018.8,5.73749]
[1742788831525,9.65268091,2019.3,2018.6,4.95371]
[1742788831730,9.55387251,2019.1,2018.6,4.95371]
[1742788831926,0.09921132,2019.0,2018.6,4.95371]
[1742788832126,5.05222132,2019.0,2018.5,31.470546]
[1742788832327,5.05222132,2019.0,2018.3,37.29963]
[1742788832328,10.35180251,2018.9,2018.3,37.29963]
[1742788832559,4.95376,2018.7,2018.2,38.08493]
[1742788832753,5.05382633,2018.6,2018.2,27.38]
[1742788832925,3.09984633,2018.6,2018.2,27.38]
[1742788833130,8.05378633,2018.6,2018.2,27.38]
[1742788833524,8.05378633,2018.6,2018.1,4.95495]
[1742788833725,0.7973,2018.5,2018.1,4.95495]
[1742788833957,0.7973,2018.5,2018.0,4.95537]
[1742788834251,0.09984633,2018.4,2018.0,4.95537]
[1742788834454,0.09984633,2018.4,2018.1,4.9551]
[1742788834767,0.09984633,2018.4,2018.0,9.91065]
[1742788834964,0.09984633,2018.4,2018.0,12.64598643]
[1742788835174,0.09984633,2018.4,2018.1,4.95511]
[1742788835381,0.09984633,2018.4,2018.2,4.95468]
[1742788835559,0.7973,2019.0,2018.5,4.954]
[1742788835727,0.09984633,2018.9,2018.4,4.9543]
[1742788835931,0.09984633,2018.9,2018.4,9.90857]
[1742788836167,0.09984633,2018.9,2018.5,4.95416]
[1742788836932,0.09984633,2018.9,2018.2,4.964]
[1742788836933,4.60117251,2018.7,2018.2,4.9548]
[1742788837173,0.09709408,2018.6,2018.2,4.9548]
[1742788837470,3.0,2018.8,2018.3,4.95465]
[1742788837670,0.09794108,2018.5,2018.4,4.95441]
[1742788837880,3.0,2018.8,2018.3,4.95465]
[1742788838042,0.88424108,2018.5,2018.1,4.95495]
[1742788838248,0.88424108,2018.5,2018.2,4.95482]
[1742788838249,0.7863,2018.5,2018.2,4.95482]
[1742788838468,0.09794108,2018.4,2018.2,4.95482]
[1742788838651,0.09794108,2018.4,2018.2,6.575657]
[1742788838971,8.73976,2018.8,2018.3,4.95465]
[1742788839177,0.09794108,2018.7,2018.3,4.95465]
[1742788839381,0.09794108,2018.7,2018.4,4.95441]
[1742788839530,0.09794108,2018.7,2018.6,4.95392]
[1742788839735,0.7863,2019.0,2018.5,4.95413]
[1742788840037,0.09746466,2018.9,2018.5,9.90819]
[1742788840282,0.09746466,2018.9,2018.5,9.90812]
[1742788840879,0.09746466,2018.9,2018.7,4.95365]
[1742788841163,0.09746466,2018.9,2018.8,4.95343]
[1742788841370,5.7423,2019.3,2018.8,4.95343]
[1742788841533,0.7863,2019.3,2019.0,4.95293]
[1742788841855,4.60117251,2019.5,2019.0,4.95293]
[1742788841856,0.7863,2019.5,2019.0,4.95293]
[1742788842053,3.7863,2019.5,2019.0,4.95293]
[1742788842258,0.7863,2019.5,2019.0,4.95283]
[1742788842432,3.7863,2019.5,2019.0,4.95294]
[1742788842632,3.7863,2019.5,2019.0,6.021694]
[1742788842839,13.33920251,2019.5,2018.8,9.9062]
[1742788843056,4.60117251,2019.3,2018.8,4.9532]
[1742788843744,8.38747251,2019.5,2018.8,4.9532]
[1742788843940,8.38747251,2019.5,2019.0,4.95292]
[1742788844146,13.33919251,2019.5,2018.9,4.95298]
[1742788845133,4.95196,2019.4,2018.9,4.95298]
[1742788845334,4.95196,2019.4,2018.8,4.95341]
[1742788845768,0.7863,2019.1,2018.7,32.34162]
[1742788846260,0.7863,2019.1,2018.8,4.95332]
[1742788846481,0.7863,2019.1,2018.7,32.34162]
[1742788846647,0.7863,2019.1,2018.7,27.388]
[1742788846980,0.7863,2019.1,2018.7,32.34166]
[1742788847151,0.7863,2019.1,2018.7,27.388]
[1742788847469,0.7863,2019.1,2018.7,32.34167]
[1742788847649,0.7863,2019.1,2018.8,4.95342]
[1742788847965,0.7863,2019.1,2018.8,4.95325]
[1742788848169,0.7863,2019.1,2018.8,13.140705]
[1742788848352,0.7863,2019.1,2018.8,8.187375]
[1742788848670,0.7863,2019.1,2018.7,32.34155]
[1742788848962,0.7863,2019.1,2018.8,4.95342]
[1742788849382,0.7863,2019.1,2018.7,9.9071]
[1742788849583,0.7863,2019.1,2018.7,4.95355]
[1742788849735,0.7863,2019.1,2018.8,4.95332]
[1742788850387,0.7863,2019.1,2018.7,4.95362]
[1742788850682,0.7863,2019.1,2018.7,9.177467]
[1742788850884,0.7863,2019.1,2018.7,14.130937]
[1742788851043,0.7863,2019.1,2018.7,9.177317]
[1742788851243,0.7863,2019.1,2018.7,14.130887]
[1742788851480,0.7863,2019.1,2018.7,9.177317]
[1742788851642,0.7863,2019.1,2018.7,4.95347]
[1742788851838,5.38747251,2019.1,2018.6,4.9539]
[1742788852046,0.7863,2019.1,2018.6,9.90765]
[1742788852294,0.7863,2019.1,2018.7,4.9536]
[1742788852473,5.38747251,2019.1,2018.6,9.309475]
[1742788852974,5.38747251,2019.1,2018.7,4.95358]
[1742788853675,0.7863,2019.1,2018.7,4.95358]
[1742788853847,0.7863,2019.1,2018.8,4.95333]
[1742788854351,0.7863,2019.1,2018.7,9.6115755]
[1742788854679,0.7863,2019.1,2018.8,4.9534]
[1742788855242,0.7857,2019.3,2019.0,4.95272]
[1742788855437,0.7857,2019.6,2019.0,5.523722]
[1742788855667,0.7857,2020.0,2019.6,4.95136]
[1742788856181,0.7857,2020.0,2019.7,4.95112]
[1742788856383,0.7857,2020.0,2019.8,4.95084]
[1742788856560,0.09298781,2019.9,2019.5,4.9516]
[1742788856762,4.60117251,2019.8,2019.3,32.3402]
[1742788857068,4.60117251,2019.8,2019.3,37.29231]
[1742788857258,0.09653515,2019.7,2019.4,4.95195]
[1742788857444,0.09653515,2019.7,2019.3,32.3401]
[1742788857649,4.60117251,2019.6,2019.1,4.95256]
[1742788857879,4.69770766,2019.6,2019.1,9.90507]
[1742788858200,4.60117251,2019.4,2019.0,32.34094]
[1742788858369,4.69770766,2019.6,2019.1,9.90529]
[1742788858568,4.69770766,2019.6,2019.1,9.90517]
[1742788858771,4.69770766,2019.6,2019.1,4.95258]
[1742788859090,9.64917766,2019.6,2019.0,32.3409]
[1742788859450,4.60117251,2019.4,2018.9,9.90615]
[1742788859684,0.7857,2019.3,2018.9,9.90615]
[1742788859873,0.88202343,2019.3,2019.0,4.9529]
[1742788860049,5.38687251,2019.1,2018.0,0.7555]
[1742788860244,4.60117251,2018.7,2018.1,4.95515]
[1742788860561,0.88122943,2018.6,2018.2,5.525945]
[1742788860985,0.88122943,2018.6,2018.1,9.91007]
[1742788861184,5.83530943,2018.6,2018.0,4.95521]
[1742788861575,5.83530943,2018.6,2018.0,9.91048]
[1742788861782,10.78944943,2018.6,2018.0,4.95521]
[1742788861985,9.55535251,2018.5,2018.0,4.95521]
[1742788862457,0.09552943,2018.4,2017.9,32.336]
[1742788862650,0.09552943,2018.4,2018.3,4.95466]
[1742788862850,0.7857,2018.8,2018.3,0.55]
[1742788863055,4.95258,2019.2,2018.3,5.50465]
[1742788863056,0.09552943,2018.4,2018.3,5.50465]
[1742788863262,0.7857,2019.0,2018.7,4.95357]
[1742788863686,0.7857,2019.0,2018.6,4.9539]
[1742788863902,3.7857,2019.0,2018.6,9.90772]
[1742788864075,3.7857,2019.0,2018.6,9.90763]
[1742788864277,3.7857,2019.0,2018.6,4.95381]
[1742788864779,0.7857,2019.0,2018.7,4.95364]
[1742788865176,7.60117251,2018.9,2018.4,27.389]
[1742788865375,12.55445251,2018.9,2018.4,32.3434]
[1742788865579,4.60117251,2018.7,2018.4,27.389]
[1742788866405,4.60117251,2018.5,2018.4,27.389]
[1742788866573,0.7716,2018.6,2018.4,27.389]
[1742788867203,5.72554,2018.6,2018.4,27.389]
[1742788868003,9.55534251,2018.5,2018.4,27.389]
[1742788868195,4.60117251,2018.5,2018.1,4.95504]
[1742788868704,10.67354,2018.6,2018.1,4.95504]
[1742788868705,5.7196,2018.6,2018.2,4.9548]
[1742788869107,0.7716,2018.6,2018.3,4.95453]
[1742788869407,0.7716,2018.6,2018.4,4.95433]
[1742788869702,5.37277251,2018.9,2018.5,4.95412]
[1742788870315,10.32599251,2018.9,2018.4,4.95435]
[1742788870611,0.7716,2018.9,2018.5,4.95399]
[1742788871402,0.7716,2018.9,2018.6,4.95383]
[1742788871576,4.60117251,2019.1,2018.6,4.9538]
[1742788871771,0.781,2019.4,2019.0,4.95294]
[1742788872505,0.781,2019.0,2018.6,4.95391]
[1742788872714,0.781,2019.0,2018.6,9.90769]
[1742788873009,0.781,2019.0,2018.6,9.9075]
[1742788873610,0.781,2019.0,2018.6,4.95372]
[1742788874306,0.781,2019.0,2018.6,9.90754]
[1742788874512,0.781,2019.0,2018.6,4.95372]
[1742788874914,0.781,2019.0,2018.5,4.94]
[1742788875220,0.781,2019.3,2019.0,4.95285]
[1742788875381,0.781,2019.5,2019.2,4.95245]
[1742788875691,0.781,2019.5,2019.3,4.9522]
[1742788875887,0.781,2019.5,2019.3,9.90421]
[1742788876193,0.00962324,2019.6,2019.4,4.95187]
[1742788876388,0.00962324,2019.6,2019.5,4.95172]
[1742788876819,0.00962324,2019.6,2019.5,5.942087]
[1742788877206,0.00962324,2019.6,2019.5,0.990367]
[1742788877402,0.00962324,2019.6,2019.5,4.95172]
[1742788878513,0.00962324,2019.6,2019.5,5.5512279]
[1742788878712,0.00962324,2019.6,2019.5,5.50172]
[1742788878883,0.00962324,2019.6,2019.5,6.25242]
[1742788879084,3.24e-06,2019.6,2019.5,11.32819325]
[1742788879487,3.24e-06,2019.6,2019.5,15.92936576]
[1742788879686,3.24e-06,2019.6,2019.5,16.38539773]
[1742788880795,3.24e-06,2019.6,2019.5,19.38539773]
[1742788881008,0.005,2020.6,2020.5,4.94926]
[1742788881315,0.005,2020.6,2020.5,33.3992]
[1742788881687,0.005,2020.6,2020.5,33.9492]
[1742788883117,0.005,2020.6,2020.5,33.3992]
[1742788883286,0.005,2020.6,2020.5,38.3572]
[1742788883487,0.005,2020.6,2020.5,33.3992]
[1742788883688,0.005,2020.6,2020.5,38.3562]
[1742788883897,0.005,2020.6,2020.5,33.3992]
[1742788884223,0.005,2020.6,2020.5,38.3552]
[1742788884716,0.005,2020.6,2020.5,38.9052]
[1742788884918,0.1205595,2021.2,2021.1,4.9478]
[1742788885223,0.1205595,2021.2,2021.1,6.018078]
[1742788885394,0.1205595,2021.2,2021.1,6.034278]
[1742788885596,0.0705595,2021.2,2021.1,6.034278]
[1742788885796,0.0705595,2021.2,2021.1,1.070278]
[1742788886008,0.17591625,2021.2,2021.0,27.374]
[1742788886195,0.0705595,2021.2,2021.1,4.9478]
[1742788886401,0.0705595,2021.2,2021.0,32.32202]
[1742788886889,0.10535675,2021.1,2021.0,32.32202]
[1742788887090,0.0705595,2021.2,2021.0,32.32202]
[1742788887289,0.10535675,2021.1,2021.0,32.32202]
[1742788887520,0.0705595,2021.2,2021.0,32.32202]
[1742788887716,0.10535675,2021.1,2021.0,32.32202]
[1742788887895,0.0705595,2021.2,2021.0,32.32202]
[1742788888441,0.8551595,2021.2,2021.0,27.374]
[1742788888588,0.8551595,2021.2,2020.7,9.89724]
[1742788888788,0.10535675,2021.1,2020.7,32.3176]
[1742788889127,0.8551595,2021.2,2020.8,4.94841]
[1742788889323,0.1054625,2021.1,2020.7,27.369]
[1742788889518,0.8551595,2021.2,2020.7,27.369]
[1742788889716,0.1054625,2021.1,2020.7,27.369]
[1742788889891,0.1054625,2021.1,2020.5,4.94908]
[1742788890091,0.1054625,2021.1,2020.4,4.9495]
[1742788890388,0.7846,2021.0,2020.4,32.3185]
[1742788890592,0.10403476,2020.9,2020.4,27.369]
[1742788890829,0.10403476,2020.9,2020.5,4.94926]
[1742788891122,0.10403476,2020.9,2020.4,37.26775]
[1742788891420,0.10403476,2020.9,2020.8,4.94853]
[1742788891622,0.0705595,2021.2,2020.9,4.94812]
[1742788891823,0.1030827,2021.1,2020.9,4.94812]
[1742788893125,0.7846,2021.0,2019.9,0.807]
[1742788893299,0.10377029,2020.9,2019.9,5.75772]
[1742788893630,0.10377029,2020.9,2020.4,4.94946]
[1742788893828,0.10377029,2020.9,2020.7,4.94869]
[1742788894004,0.10377029,2020.9,2020.8,4.94853]
[1742788894204,0.0705595,2021.2,2020.6,4.953]
[1742788894421,0.0705595,2021.2,2020.8,1.357]
[1742788894632,0.0705595,2021.2,2021.1,5.4978]
[1742788894792,0.0705595,2021.2,2021.1,10.5018]
[1742788894997,0.0705595,2021.2,2021.1,9.9518]
[1742788895191,0.0705595,2021.2,2021.0,4.94793]
[1742788895406,0.0705595,2021.2,2021.0,5.523423]
[1742788895741,0.0705595,2021.2,2021.1,4.9478]
[1742788895925,0.02107292,2021.2,2021.1,4.9478]
[1742788896426,3.76090292,2022.0,2021.0,5.523333]
[1742788896729,4.94621,2021.8,2021.1,4.94776]
[1742788896904,4.94586,2021.9,2021.1,4.94759]
[1742788897223,9.98759931,2021.8,2021.1,4.94759]
[1742788897426,9.98752931,2021.8,2021.1,4.94759]
[1742788897645,4.94649,2021.7,2021.0,5.523503]
[1742788897926,8.70670292,2022.0,2021.0,27.842493]
[1742788898126,5.11018931,2021.9,2021.1,3.2856493]
[1742788898329,0.09518931,2021.9,2021.5,4.94681]
[1742788898532,3.0,2022.1,2021.3,9.9623]
[1742788898734,0.09518931,2022.0,2021.0,32.790313]
[1742788899028,4.94629,2021.8,2021.1,4.94771]
[1742788899246,3.0,2021.8,2021.1,4.94775]
[1742788899398,0.09518931,2021.7,2021.2,4.94737]
[1742788899599,0.09518931,2021.7,2021.2,9.89476]
[1742788899817,0.09518931,2021.7,2021.2,4.94737]
[1742788899999,0.09518931,2021.7,2021.2,4.94754]
[1742788900199,0.09518931,2021.7,2021.1,4.94759]
[1742788900401,0.09518931,2021.7,2021.1,9.89524]
[1742788900633,0.09518931,2021.7,2021.1,4.94759]
[1742788901028,0.09518931,2021.7,2021.1,9.89524]
[1742788901235,0.09518931,2021.7,2021.1,4.94759]
[1742788901700,0.7627,2021.6,2021.0,27.367]
[1742788901901,0.7627,2021.4,2020.8,4.94844]
[1742788902134,5.70981,2021.4,2020.8,27.361]
[1742788902331,0.7627,2021.2,2020.7,27.361]
[1742788902520,3.7627,2021.2,2020.7,27.361]
[1742788902698,0.09614204,2021.1,2020.7,27.361]
[1742788902904,0.09614204,2021.1,2020.4,4.94947]
[1742788902905,8.3560181,2021.0,2020.4,4.94947]
[1742788903203,4.5933181,2020.8,2020.4,27.361]
[1742788903535,0.85884204,2020.7,2020.4,27.361]
[1742788903934,5.71207,2020.5,2019.9,32.375]
[1742788904102,4.5933181,2020.4,2019.9,37.32563]
[1742788904304,0.09370701,2020.3,2019.9,37.32563]
[1742788904601,9.5428981,2020.4,2019.9,32.375]
[1742788904807,4.5933181,2020.4,2019.9,32.375]
[1742788905003,0.7627,2021.0,2020.0,5.403722]
[1742788905243,3.0,2020.9,2020.2,4.94983]
[1742788905406,3.0,2020.5,2019.8,0.7609]
[1742788905605,3.0,2020.5,2019.9,32.31151]
[1742788905606,0.7627,2020.4,2019.9,32.31151]
[1742788906118,0.7627,2020.4,2020.0,4.95045]
[1742788906317,5.3560181,2020.4,2019.9,27.361]
[1742788906737,4.5933181,2020.2,2019.6,4.95124]
[1742788907037,0.7627,2020.1,2019.6,4.95124]
[1742788907200,8.71304,2020.1,2019.5,32.31569]
[1742788907404,3.7627,2020.1,2019.6,4.9514]
[1742788907817,3.7627,2020.1,2019.6,9.90275]
[1742788908017,3.7627,2020.1,2019.6,4.228936]
[1742788908212,3.7627,2020.1,2019.5,32.31571]
[1742788908434,3.7627,2020.1,2019.5,32.3156]
[1742788908641,4.9506,2020.0,2019.5,27.364]
[1742788908841,3.7627,2020.1,2019.6,4.95135]
[1742788909539,3.7627,2020.1,2019.5,32.31549]
[1742788909721,3.7627,2020.1,2019.6,4.95129]
[1742788910039,3.7627,2020.1,2019.5,37.2671]
[1742788910346,3.7627,2020.1,2019.5,32.31549]
[1742788910638,3.7627,2020.1,2019.5,37.26709]
[1742788910816,0.7627,2020.1,2019.5,31.090709]
[1742788911149,0.7627,2020.1,2019.6,4.95126]
[1742788911439,5.71296,2020.1,2019.5,36.042399]
[1742788911641,3.0,2020.0,2019.5,27.364]
[1742788911809,7.95067,2020.0,2019.5,27.364]
[1742788912012,3.0,2020.0,2019.5,27.364]
[1742788912326,3.0,2020.0,2019.5,32.31568]
[1742788912731,3.0,2020.0,2019.5,27.364]
[1742788913135,0.7627,2020.1,2019.5,31.096996]